Cogmind - Beta 14 @@@ ROGUE MODE // 2024.09.30 @ 09:59:44 Player: Komeiji O. Result: Destroyed by F5-31K(R) with Subdweller Machine Gun Performance ------------- Evolutions (0) 0 Regions Visited (3) 600 Robots Destroyed (23) 115 Value Destroyed (619) 619 Prototype IDs (0) 0 Alien Tech Used (0) 0 Bonus (-541) -541 TOTAL SCORE: 793 Bonus ------- Follower Combat Kills 7 Friendly Fire -548 Cogmind --------- Core Integrity 0/250 Matter 250/300 Energy 160/160 System Corruption 0% Temperature Cool (0) Movement Walking (190) Ox1 Location -10/Subcaves Parts ------- > --- POWER (1) -------- Light Nuclear Core > --- PROPULSION (2) --- Aluminum Leg Aluminum Leg > --- UTILITY (2) ------ Large Storage Unit Structural Scanner > --- WEAPON (2) ------- Mini Grenade Launcher Mini Grenade Launcher > --- INVENTORY (15) --- Light Ion Engine Flight Unit Flight Unit Heat Sink Cooling System Cooling System Medium Matter Pod (100) Sensor Array Scrap Shield EM Pulse Gun Small Laser Mini Grenade Launcher Ripper Peak State ------------ > --- POWER ------------ Light Nuclear Core > --- PROPULSION ------- Aluminum Leg Aluminum Leg > --- UTILITY ---------- Large Storage Unit Structural Scanner > --- WEAPON ----------- Mini Grenade Launcher Mini Grenade Launcher > --- INVENTORY -------- Light Ion Engine Flight Unit Flight Unit Heat Sink Cooling System Cooling System Medium Matter Pod Sensor Array Scrap Shield EM Pulse Gun Small Laser Mini Grenade Launcher Ripper [Rating: 13] Favorites ----------- Power Light Nuclear Core Engine Ion Engine Power Core Light Nuclear Core Propulsion Light Treads Treads Light Treads Leg Aluminum Leg Utility Structural Scanner Device Structural Scanner Storage Large Storage Unit Weapon Mini Grenade Launcher Energy Gun EM Pulse Gun Ballistic Gun Assault Rifle Launcher Mini Grenade Launcher Build | -11 -10 -10 -10 ------- Run | Yrd Mat Min Sub Slots Evolved . | . . . . Power . | . . . . Propulsion . | . . . . Utility . | . . . . Weapon . | . . . . Parts Attached 19 | 6 6 6 1 Power 4 | 1 2 1 . Engine 2 | 1 1 . . Core 2 | . 1 1 . Reactor . | . . . . Propulsion 4 | 2 . 2 . Treads 2 | 2 . . . Leg 2 | . . 2 . Wheel . | . . . . Hover . | . . . . Flight . | . . . . Utility 3 | 1 2 . . Device 1 | . 1 . . Storage 2 | 1 1 . . Processor . | . . . . Hackware . | . . . . Protection . | . . . . Artifact . | . . . . Weapon 8 | 2 2 3 1 Energy Gun 2 | 1 . 1 . Energy Cannon . | . . . . Ballistic Gun 3 | 1 1 1 . Ballistic Cannon . | . . . . Launcher 3 | . 1 1 1 Special Weapon . | . . . . Impact Weapon . | . . . . Slashing Weapon . | . . . . Piercing Weapon . | . . . . Special Melee Weapon . | . . . . Unidentified Prototypes . | . . . . Parts Lost 4 | . 1 3 . Power 1 | . 1 . . Propulsion 2 | . . 2 . Utility . | . . . . Weapon 1 | . . 1 . Highest Loss Streak 3 | . 1 3 . To Critical Strikes . | . . . . Average Slot Usage (%) 99 | . 99 99 100 Engine 1 | . 4 . . Core 12 | . 8 14 14 Treads 18 | . 28 15 . Leg 9 | . . 12 28 Device 13 | . 13 14 14 Storage 14 | . 14 14 14 Energy Gun 7 | . 9 6 12 Ballistic Gun 9 | . 14 7 . Launcher 11 | . 4 14 15 Peak Build Rating 13 | 6 11 12 13 Average Rating 10 | 5 8 11 11 On Entrance 7 | . 6 11 11 Naked Turns . | . . . . Heaviest Build 29 | 13 29 29 29 Greatest Support 40 | 40 40 40 20 Greatest Overweight (x) 1 | 1 . 1 1 Average Overweight (x) . | . . . 1 Largest Inventory Capacity 15 | 8 15 15 15 Average Capacity 14 | 7 14 15 15 Most Carried 15 | 4 14 15 14 Average Carried 11 | 2 9 13 13 Final Capacity 15 | 8 15 15 15 Final Carried 14 | 4 14 12 14 Class Distribution -------------------- 100% | Mutant Dominant Class ---------------- Mutant | -10/Materials Mutant | -10/Mines Mutant | -10/Subcaves Resources | -11 -10 -10 -10 ----------- Run | Yrd Mat Min Sub Matter Collected 554 | 208 150 196 . Remotely . | . . . . Salvage Created 580 | . 150 115 315 Parts 34 | . 7 8 19 Haulers Intercepted . | . . . . Recyclers Shooed . | . . . . Parts Field Recycled . | . . . . Retrieved Matter . | . . . . Parts Self-Destructed . | . . . . Prevented . | . . . . Kills | -11 -10 -10 -10 ------- Run | Yrd Mat Min Sub Combat Hostiles Destroyed 32 | . 3 21 8 Guns 3 | . 3 . . AOE 29 | . . 21 8 Classes Destroyed 7 | . 2 4 1 Worker 1 | . . 1 . Watcher 1 | . 1 . . Swarmer 5 | . . 5 . Grunt 4 | . 3 1 . Demolisher 1 | . . 1 . Subdweller 8 | . . . 8 Assembled 14 | . . 14 . Thug 3 | . . . 3 Best Kill Streak 14 | . 2 14 8 Combat Bots Only 14 | . 2 14 8 Max Kills in Single Turn 8 | . 1 6 8 Gunslinging . | . . . . Exploded 6 | . . 6 5 Melee . | . . . . Uniques/NPCs Destroyed . | . . . . Combat | -11 -10 -10 -10 -------- Run | Yrd Mat Min Sub Hostile Shots Fired 74 | . 36 33 5 Missed 26 | . 12 11 3 Damage Taken 902 | . 284 568 50 Core 274 | . 57 167 50 Absorbed by Shields . | . . . . Core Remaining (%) 100 | 100 . . . Volleys Fired 42 | . 24 16 2 Largest 2 | . 2 2 2 Hottest 60 | . 60 50 60 Shots Fired 80 | . 47 29 4 Gun 62 | . 47 15 . Cannon . | . . . . Launcher 18 | . . 14 4 Special . | . . . . Kinetic 39 | . 24 15 . Thermal 23 | . 23 . . Explosive 18 | . . 14 4 Electromagnetic . | . . . . Robot Hit Streak 7 | . 7 2 4 Robot Miss Streak 6 | . 6 5 . Penetration Max . | . . . . Secondary Targets 1 | . 1 . . Max Gunslinging Chain 1 | . 1 . . Shots Hit Robots 35 | . 23 10 2 Core Hits 62 | . 8 40 14 Critical Kills . | . . . . Critical Parts Destroyed . | . . . . Critical Strikes . | . . . . Melee Attacks . | . . . . Impact . | . . . . Slashing . | . . . . Piercing . | . . . . Sneak Attacks . | . . . . Combat Hostiles . | . . . . Follow-up Attacks . | . . . . Damage Inflicted 2807 | . 274 1317 1216 Guns 318 | . 274 44 . Cannons . | . . . . Explosions 2472 | . . 1256 1216 Melee . | . . . . Ramming 17 | . . 17 . Kinetic 209 | . 165 44 . Thermal 109 | . 109 . . Explosive 2472 | . . 1256 1216 Electromagnetic . | . . . . Impact . | . . . . Slashing . | . . . . Piercing . | . . . . Highest Corruption . | . . . . Average Corruption . | . . . . Corruption Purged . | . . . . Corruption Blocked . | . . . . Overload Shots . | . . . . Overflow Damage 85 | . . 85 . Projectiles . | . . . . Explosions 85 | . . 85 . Melee . | . . . . Knockbacks 1 | . . 1 . Impact 1 | . . 1 . Kinetic . | . . . . Secondary . | . . . . Self-Inflicted Damage 43 | . . 43 . Shots 2 | . . 2 . Rammed . | . . . . Targets Rammed 3 | . . 3 . Kicked 3 | . . 3 . Crushed . | . . . . Highest Temperature 60 | . 60 28 . Average Temperature 20 | . 23 11 . Received Heat Transfer 192 | . 159 33 . Siege Activations . | . . . . Robots Corrupted . | . . . . Combat Hostiles . | . . . . Parts Fried . | . . . . Impact Corruptions . | . . . . Robots Melted . | . . . . Combat Hostiles . | . . . . Parts Melted . | . . . . Heat Transferred 250 | . 250 . . Parts Sabotaged . | . . . . Parts Stolen . | . . . . Parts Stripped . | . . . . Power Chain Reactions . | . . . . Alert | -11 -10 -10 -10 ------- Run | Yrd Mat Min Sub Peak Influence 218 | . 88 218 . Initial 5 | . . 5 . Average 45 | . 31 55 . Maximum Alert Level 1 | . . 1 . Low Security (%) 96 | 100 100 95 . Level 1 3 | . . 4 . Level 2 . | . . . . Level 3 . | . . . . Level 4 . | . . . . Level 5 . | . . . . High Security . | . . . . Max Security . | . . . . Squads Dispatched . | . . . . Investigation . | . . . . Extermination . | . . . . Reinforcement . | . . . . Assault . | . . . . Garrison . | . . . . Intercept . | . . . . Searches Triggered . | . . . . Construction Impeded . | . . . . Haulers Reinforced . | . . . . Active Scanning Responses . | . . . . Cargo Convoy Interrupts . | . . . . Stealth | -11 -10 -10 -10 --------- Run | Yrd Mat Min Sub Distress Signals 1 | . 1 . . Communications Jammed . | . . . . Distress Signals . | . . . . Times Spotted 46 | . 10 25 11 Peak Tracking Total 12 | . 3 12 5 Tactical Retreats 1 | . 1 . . Traps | -11 -10 -10 -10 ------- Run | Yrd Mat Min Sub Traps Triggered . | . . . . Indirectly . | . . . . Trap Hack Attempts . | . . . . Triggered . | . . . . Disarmed . | . . . . Reprogrammed . | . . . . Reused . | . . . . Traps Extracted . | . . . . Installed . | . . . . Triggered . | . . . . Machines | -11 -10 -10 -10 ---------- Run | Yrd Mat Min Sub Machines Disabled 3 | . . 3 . Max in Single Turn 1 | . . 1 . Machines Repaired . | . . . . Machines Dismantled . | . . . . Machines Sabotaged . | . . . . Overloaded Fab Kills . | . . . . Hacking | -11 -10 -10 -10 --------- Run | Yrd Mat Min Sub Machines Accessed 4 | . 4 . . Terminals 2 | . 2 . . Fabricators . | . . . . Repair Stations . | . . . . Recycling Units 2 | . 2 . . Scanalyzers . | . . . . Garrison Access . | . . . . Total Hacks 7 | . 7 . . Successful 5 | . 5 . . Failed 2 | . 2 . . Catastrophic . | . . . . Database Lockouts . | . . . . Manual 3 | . 3 . . Terminals 4 | . 4 . . Fabricators . | . . . . Repair Stations . | . . . . Recycling Units 3 | . 3 . . Scanalyzers . | . . . . Garrison Access . | . . . . Terminal Hacks 1 | . 1 . . Robot Analysis 1 | . 1 . . Fabricator Hacks . | . . . . Repair Station Hacks . | . . . . Recycling Unit Hacks 3 | . 3 . . Process 1 | . 1 . . Report Inventory 1 | . 1 . . Retrieve Matter 1 | . 1 . . Scanalyzer . | . . . . Garrison Access Hacks . | . . . . Unauthorized Hacks 1 | . 1 . . Terminals 1 | . 1 . . Assimilate 1 | . 1 . . Fabricators . | . . . . Repair Stations . | . . . . Recycling Units . | . . . . Scanalyzers . | . . . . Garrison Access . | . . . . Data Cores Recovered . | . . . . Used . | . . . . Hacking Detections 2 | . 2 . . Full Trace Events . | . . . . Feedback Events . | . . . . Feedback Blocked . | . . . . Robot Schematics Acquired . | . . . . Robots Built . | . . . . Authchips . | . . . . Time . | . . . . Total Robot Build Rating . | . . . . Part Schematics Acquired . | . . . . Parts Built . | . . . . Authchips . | . . . . Time . | . . . . Total Part Build Rating . | . . . . Parts Repaired . | . . . . Time . | . . . . Parts Recycled . | . . . . Recycled Matter 168 | . 168 . . Retrieved Matter 168 | . 168 . . Retrieved Components . | . . . . Parts Scanalyzed . | . . . . Part Schematics Acquired . | . . . . Parts Damaged . | . . . . Bothacking | -11 -10 -10 -10 ------------ Run | Yrd Mat Min Sub Used RIF Installer . | . . . . Robots Hacked . | . . . . Non-combat . | . . . . Combat . | . . . . Robot Hacks Applied . | . . . . Relay Couplers Released . | . . . . Fabnet Peak Effective % . | . . . . Robots Rewired . | . . . . Allies Hacked . | . . . . Hacks Repelled . | . . . . Allies | -11 -10 -10 -10 -------- Run | Yrd Mat Min Sub Total Allies 2 | . . 2 . Largest Group 2 | . . 2 . Highest-Rated Group 49 | . . 49 . Highest-Rated Ally 31 | . . 31 . Total Orders . | . . . . Ally Attacks 16 | . . 16 . Total Damage 252 | . . 252 . Kills 6 | . . 6 . Allies Corrupted . | . . . . Allies Melted . | . . . . Intel | -11 -10 -10 -10 ------- Run | Yrd Mat Min Sub Robot Analysis Total 1 | . 1 . . Derelict Logs Recovered 3 | . . 2 1 Drone Launches . | . . . . Drone Recoveries . | . . . . Exploration | -11 -10 -10 -10 ------------- Run | Yrd Mat Min Sub Turns Passed 2500 | 134 709 1552 105 Spaces Moved 1381 | 79 387 863 52 Core 5 | 5 . . . Treads 964 | 74 387 503 . Legs 412 | . . 360 52 Wheels . | . . . . Hover . | . . . . Flight . | . . . . Fastest Speed 50 | 50 160 160 190 Average Speed 168 | 154 160 172 190 Slowest Speed 240 | 160 160 240 190 Overloaded Moves . | . . . . Propulsion Burnouts . | . . . . Robots Hopped . | . . . . Cave-ins Triggered . | . . . . Exploration Rate (%) 37 | 3 46 93 7 Regions Visited 3 Branch Regions 2 Pre-discovered Areas . | . . . . Known Exits Taken . | . . . . Unknown Exits Taken 3 | 1 1 1 . Scrap Searched 2 | . . 2 . Spaces Dug . | . . . . Terrain Destroyed 142 | . . 118 24 Melee . | . . . . Projectile . | . . . . AOE 142 | . . 118 24 Terrain Rammed . | . . . . Walls Destroyed . | . . . . Machines Disabled . | . . . . Actions | -11 -10 -10 -10 --------- Run | Yrd Mat Min Sub Total 1474 | 88 428 902 56 Wait . | . . . . Move 1378 | 78 386 862 52 Hop . | . . . . Pick Up 23 | 4 11 7 1 Fast Attach 7 | 6 1 . . Attach 4 | . 1 3 . Detach . | . . . . Swap 8 | . 4 3 1 Drop 9 | . 1 8 . Fire 42 | . 24 16 2 Melee . | . . . . Ram . | . . . . Kick 3 | . . 3 . Crush . | . . . . Escape Stasis . | . . . . Rewire . | . . . . Trap . | . . . . Miscellaneous . | . . . . Route ------- -11/Scrapyard -10/Materials (discovered 2 exits: [*Mat] / [*Min]) -10/Mines (discovered 2 exits: [*Mat] / [*Sub]) -10/Subcaves History --------- Turn | Location | Event 13 | -11/Scrapyard | Discovered new exit (range 16) 135 | -11/Scrapyard | Entered Materials 308 | -10/Materials | Build established: Mutant 539 | -10/Materials | Discovered new exit (range 7) 724 | -10/Materials | Discovered new exit (range 10) 844 | -10/Materials | Entered Mines 877 | -10/Mines | Met a Derelict bent on vengeance 924 | -10/Mines | A weapon hastily lodged in a ceiling crevice suddenly fell to the ground 946 | -10/Mines | Learned 2 Materials zone layouts 1095 | -10/Mines | Discovered new exit (range 9) 1305 | -10/Mines | Learned 4 Materials zone layouts 1337 | -10/Mines | Assembled infested the area 1342 | -10/Mines | Assisted by a Guerilla fighting off Assembled 1397 | -10/Mines | Destroyed 14 combat bots 1692 | -10/Mines | Core integrity fell below 50% 1701 | -10/Mines | Core integrity fell below 20% 1731 | -10/Mines | Lost 3 parts (2n1w) 2341 | -10/Mines | Discovered new exit (range 16) 2396 | -10/Mines | Entered Subcaves 2468 | -10/Subcaves | Learned Materials stockpile data 2495 | -10/Subcaves | Ambushed by swarm of Subdwellers 2495 | -10/Subcaves | Ambushed by Subdwellers from Twisted Machinery 2495 | -10/Subcaves | Ambushed by Subdwellers from Twisted Machinery 2498 | -10/Subcaves | Ambushed by Subdwellers from Twisted Machinery 2501 | -10/Subcaves | Ambushed by Subdwellers from Twisted Machinery 2501 | -10/Subcaves | Ambushed by Subdwellers from Twisted Machinery 2501 | -10/Subcaves | Destroyed by F5-31K(R) with Subdweller Machine Gun Last Messages --------------- 02495_ DT-HXE(h): "The Subs are coming!" 02495_ G7-K4E(R) angrily emerges from the Twisted Machinery. 02495_ HF-A41(R) angrily emerges from the Twisted Machinery. 02495_ HF-A41(R) suffers critical hit (Destroy). 02495_ HF-A41(R) destroyed. 02497_ GZ-EFE(R) emerges from the Twisted Machinery. 02498_ HV Slug penetrates Twisted Machinery. 02498_ GZ-EFE(R) destroyed. 02498_ 4R-AMY(R) angrily emerges from the Twisted Machinery. 02498_ GI-52P(R) destroyed. 02498_ 3H-I2J(R) destroyed. 02498_ 8B-5N8(R) destroyed. [Achievement: Backstab] 02498_ G7-K4E(R) destroyed. 02501_ HV Slug penetrates 4R-AMY(R). 02501_ TH-W3X(R) destroyed. 02501_ G7-GTG(R) angrily emerges from the Twisted Machinery. 02501_ MS-N14(R) angrily emerges from the Twisted Machinery. 02501_ 4R-AMY(R) destroyed. 02501_ QW-XAD(R) destroyed. Map ----- +----------------------------------------------------+ | ???????????????????????? ##?????????##### ####? | | ???????????????????????# ##????????##### #### | | ???????????????????????## #????????### ### | | ???????????????????###### ##????###### ## | | ???????????????????###### ##???######## ## | | ???????????????????## ???## ##?## ## | | ??????????????????? ## ????## ###### # | | ????????????????????## ?#### ###### # | | ????????????????????### ###### ### ## # | | ?????????????????????## ##### ### #### # | | ???????????????????? ## ### #### ### # | | ????????????????? ###### #### ## # | | ???????????# ??? #### # ## # | | ???????????## ? % ## | | ???????????## ## &= ## ## ##### | | ???????????## *%[* ### ## ##### | | ???????????## RR**& ####### ## ## ###??? | | ???????????## # R&!! ######## #######??? | | ???????????### # =&] ###?#### ####???? | | ??????????? ###### !* ##??#### ????????? | | ????????????????### ##???### ????????? | | ?????????????????## ######????### #??????? | | ????????????????##### #"#####????#######??????? | | ???????????????##### ###########?######??????? | | ???????????????### ### ###????????????? | | ????????? h @ ###???????????? | | ????????? ##???????????? | | ????????? ### ###???????????? | | ?????????? ### #############???????????? | | ??????????? ######## ####?########????????????? | | ???????????????############??????????????????????? | | ???????????????????######????????????????????????? | | ?????????????????????????????????????????????????? | | ?????????????????????????????????????????????????? | | ?????????????????????????????????????????????????? | | ?????????????????????????????????????????????????? | | ?????????????????????????????????????????????????? | | ?????????????????????????????????????????????????? | | ?????????????????????????????????????????????????? | | ?????????????????????????????????????????????????? | | ?????????????????????????????????????????????????? | | ?????????????????????????????????????????????????? | | ?????????????????????????????????????????????????? | | ?????????????????????????????????????????????????? | | ?????????????????????????????????????????????????? | | ?????????????????????????????????????????????????? | | ?????????????????????????????????????????????????? | | ?????????????????????????????????????????????????? | | ?????????????????????????????????????????????????? | | ?????????????????????????????????????????????????? | +----------------------------------------------------+ Best States ------------- Heat Dissipation 25 Energy Generation 14 Energy Capacity 250 Matter Stores 300 Matter Capacity 300 Sight Range 16 Terrain Scan Density 10 Evasion (%) 40 Recoil Reduction 2 Item Schematics ----------------- None Robot Schematics ------------------ None Fabricated ------------ Nothing Alien Tech Used ----------------- None Achievements -------------- Backstab I Survived The Infestation Quick And Dirty Challenges ------------ None Game ------ Seed BoreCorruptionNukerbomber Manual? 0 Play Time 00:18:03 Cumulative 6.3 hours Start 2024.09.30 @ 09:42:44 End 2024.09.30 @ 09:59:44 Sessions 1 Manual Loads 0 Difficulty Rogue Special Mode None Game No. 10 Rogue 10 Adventurer 0 Explorer 0 Win Type - Total 0 Types 0/0/0/0/0/0/0/0/0 Lore% 0 Gallery% 9 Achievement% 10 Wizard Run 0 Options --------- Layout 0 ASCII 0 Keyboard 0 Movement Vi Keybinds 0 Fullscreen 2 Font 36/Terminus++ Map View 76x50 Zoom Use 0% Tactical HUD 1 Map Filters NONE Filters NONE Steam 0 RUN: e3d3ee1c-3bda-443a-8671-6fd640503ecc